bitfinex-derivatives/quotes_SOLF0:USTF0_20251026
["timestamp","ask_amount","ask_price","bid_price","bid_amount"]
[1761451564055,4.03183116,193.08,193.05,2.74]
[1761451564259,4.03183116,193.07,193.05,2.74]
[1761451564460,1.51065569,193.1,193.05,2.74]
[1761451564664,4.03214505,193.09,193.05,2.74]
[1761451564954,4.03214505,193.08,193.05,2.74]
[1761451565156,4.03214505,193.07,193.05,2.74]
[1761451565359,1.51065569,193.1,193.05,2.74]
[1761451565654,4.03256874,193.09,193.05,2.74]
[1761451565858,4.03256874,193.08,193.05,2.74]
[1761451566068,4.03256874,193.07,193.05,2.74]
[1761451566267,4.03306872,193.06,193.05,2.74]
[1761451575374,4.84657789,193.11,193.05,2.74]
[1761451575575,4.03864541,193.1,193.05,2.74]
[1761451575765,4.03864541,193.09,193.05,2.74]
[1761451575964,4.03864541,193.08,193.05,2.74]
[1761451576260,4.03864541,193.07,193.05,2.74]
[1761451576465,4.84657789,193.11,193.05,2.74]
[1761451576766,4.03882405,193.1,193.05,2.74]
[1761451576965,4.03882405,193.09,193.05,2.74]
[1761451577165,4.03882405,193.08,193.05,2.74]
[1761451577466,4.03882405,193.07,193.05,2.74]
[1761451577666,4.84657789,193.11,193.05,2.74]
[1761451577868,4.03885587,193.1,193.05,2.74]
[1761451578067,4.03885587,193.09,193.05,2.74]
[1761451578368,4.03885587,193.08,193.05,2.74]
[1761451578568,4.03885587,193.07,193.05,2.74]
[1761451578864,4.84657789,193.11,193.05,2.74]
[1761451579063,1.51065569,193.13,193.05,2.74]
[1761451579064,4.03882163,193.1,193.05,2.74]
[1761451579262,4.03882163,193.09,193.05,2.74]
[1761451579460,4.84657789,193.17,193.08,2.69]
[1761451579674,4.03628482,193.16,193.11,2.69]
[1761451579970,4.03628482,193.15,193.11,2.69]
[1761451580266,6.35723358,193.19,193.11,2.69]
[1761451580472,4.03129787,193.18,193.11,2.69]
[1761451580671,4.03129787,193.17,193.11,2.69]
[1761451580868,4.03129787,193.16,193.11,2.69]
[1761451581170,4.03129787,193.15,193.11,2.69]
[1761451581373,1.51065569,193.19,193.11,2.69]
[1761451581673,4.02870527,193.18,193.11,2.69]
[1761451581870,4.02870527,193.17,193.11,2.69]
[1761451582080,4.02870527,193.16,193.11,2.69]
[1761451582372,1.51065569,193.19,193.11,2.69]
[1761451582572,4.02656056,193.18,193.11,2.69]
[1761451582771,4.02656056,193.17,193.11,2.69]
[1761451582976,4.02656056,193.16,193.11,2.69]
[1761451583160,1.51065569,193.19,193.11,2.69]
[1761451583363,4.02503193,193.18,193.11,2.69]
[1761451583563,4.02503193,193.17,193.11,2.69]
[1761451583868,4.02503193,193.16,193.11,2.69]
[1761451584069,1.51065569,193.19,193.11,2.69]
[1761451584267,4.02494137,193.18,193.11,2.69]
[1761451584464,4.02494137,193.17,193.11,2.69]
[1761451584673,1.51065569,193.19,193.11,2.69]
[1761451584860,4.02333061,193.18,193.11,2.69]
[1761451585062,4.02333061,193.17,193.11,2.69]
[1761451585269,1.51065569,193.19,193.11,2.69]
[1761451585470,4.02203426,193.18,193.11,2.69]
[1761451585670,4.02203426,193.17,193.11,2.69]
[1761451585869,1.51065569,193.19,193.11,2.69]
[1761451586171,4.02203426,193.18,193.11,2.69]
[1761451586371,4.02203426,193.17,193.11,2.69]
[1761451586572,1.51065569,193.2,193.11,2.69]
[1761451586772,4.02090439,193.19,193.11,2.69]
[1761451586972,4.02090439,193.18,193.11,2.69]
[1761451587172,4.02090439,193.17,193.11,2.69]
[1761451587373,1.51065569,193.2,193.11,2.69]
[1761451587671,4.02001245,193.19,193.11,2.69]
[1761451587873,4.02001245,193.18,193.11,2.69]
[1761451588071,4.02001245,193.17,193.11,2.69]
[1761451588272,1.51065569,193.2,193.11,2.69]
[1761451588472,4.01917499,193.19,193.11,2.69]
[1761451588672,4.01917499,193.18,193.11,2.69]
[1761451588873,4.01917499,193.17,193.11,2.69]
[1761451589073,1.51065569,193.2,193.11,2.69]
[1761451589375,4.01917499,193.19,193.11,2.69]
[1761451589565,4.01917499,193.18,193.11,2.69]
[1761451589872,4.01917499,193.17,193.11,2.69]
[1761451590069,1.51065569,193.2,193.11,2.69]
[1761451590270,4.01843345,193.19,193.11,2.69]
[1761451590473,4.01843345,193.18,193.11,2.69]
[1761451590673,1.51065569,193.2,193.11,2.69]
[1761451590872,4.01772253,193.19,193.11,2.69]
[1761451591072,4.01772253,193.18,193.11,2.69]
[1761451591274,4.84657789,193.22,193.11,2.69]
[1761451591469,5.52776379,193.21,193.12,1.51065569]
[1761451591675,4.0171081,193.2,193.13,2.69]
[1761451591875,4.0171081,193.19,193.13,2.69]
[1761451592076,4.0171081,193.18,193.13,2.69]
[1761451592377,1.51065569,193.21,193.13,2.69]
[1761451592578,4.01656916,193.2,193.13,2.69]
[1761451592777,4.01656916,193.19,193.13,2.69]
[1761451592979,4.01656916,193.18,193.13,2.69]
[1761451593278,1.51065569,193.21,193.13,2.69]
[1761451593480,4.01610028,193.2,193.13,2.69]
[1761451593680,4.01610028,193.19,193.13,2.69]
[1761451593871,1.51065569,193.21,193.13,2.69]
[1761451594074,4.01604916,193.2,193.13,2.69]
[1761451594274,4.01604916,193.19,193.13,2.69]
[1761451594475,1.51065569,193.21,193.13,2.69]
[1761451594775,4.0155246,193.2,193.13,2.69]
[1761451595077,4.0155246,193.19,193.13,2.69]
[1761451595378,1.51065569,193.21,193.13,2.69]
[1761451595576,4.01498711,193.2,193.13,2.69]
[1761451595776,4.01498711,193.19,193.13,2.69]
[1761451595973,1.51065569,193.21,193.13,2.69]
[1761451596174,4.01493229,193.2,193.13,2.69]
[1761451596476,4.01493229,193.19,193.13,2.69]
[1761451596678,1.51065569,193.21,193.13,2.69]
[1761451596879,4.01449151,193.2,193.13,2.69]
[1761451597079,4.01449151,193.19,193.13,2.69]
[1761451597279,1.51065569,193.21,193.13,2.69]
[1761451597579,4.01412397,193.2,193.13,2.69]
[1761451597881,4.01412397,193.19,193.13,2.69]
[1761451598082,1.51065569,193.2,193.13,2.69]
[1761451598278,4.01412397,193.19,193.13,2.69]
[1761451598474,1.51065569,193.2,193.13,2.69]
[1761451598674,4.00509965,193.19,193.13,2.69]
[1761451602872,4.00509965,193.23,193.13,2.69]
[1761451603075,4.00509965,193.22,193.13,2.69]
[1761451603282,4.00509965,193.21,193.13,2.69]
[1761451603482,4.00509965,193.2,193.13,2.69]
[1761451603683,2.35806565,193.24,193.13,2.69]
[1761451603885,4.00447818,193.23,193.13,2.69]
[1761451604184,4.00447818,193.22,193.13,2.69]
[1761451604480,7.20464354,193.24,193.13,2.69]
[1761451604481,4.00447818,193.21,193.13,2.69]
[1761451604681,4.00447818,193.2,193.13,2.69]
[1761451604982,7.20464354,193.24,193.13,2.69]
[1761451605182,4.00455555,193.23,193.13,2.69]
[1761451605381,4.00455555,193.22,193.13,2.69]
[1761451605583,2.35806565,193.24,193.13,2.69]
[1761451605584,4.00455555,193.21,193.13,2.69]
[1761451605781,4.00455555,193.2,193.13,2.69]
[1761451605981,2.35806565,193.24,193.13,2.69]
[1761451606176,4.00448162,193.23,193.13,2.69]
[1761451606383,4.00448162,193.22,193.13,2.69]
[1761451606584,4.00448162,193.21,193.13,2.69]
[1761451606780,4.00448162,193.2,193.13,2.69]
[1761451607084,4.00448162,193.19,193.13,2.69]
[1761451607283,7.20464354,193.24,193.13,2.69]
[1761451607476,4.00503494,193.23,193.13,2.69]
[1761451607676,4.00503494,193.22,193.13,2.69]
[1761451607887,4.00503494,193.21,193.13,2.69]
[1761451608086,4.00503494,193.2,193.13,2.69]
[1761451608281,4.00503494,193.19,193.13,2.69]
[1761451608585,4.00503494,193.22,193.13,2.69]
[1761451608784,4.00503494,193.21,193.13,2.69]
[1761451608984,4.00503494,193.2,193.13,2.69]
[1761451609185,4.00503494,193.19,193.13,2.69]
[1761451609387,2.35806565,193.23,193.13,2.69]
[1761451609587,4.00562092,193.22,193.13,2.69]
[1761451609887,4.00562092,193.21,193.13,2.69]
[1761451610082,4.00562092,193.22,193.13,2.69]
[1761451610285,4.00562092,193.25,193.15,2.71]
[1761451610485,4.00562092,193.24,193.15,2.71]
[1761451610684,4.00562092,193.28,193.15,2.71]
[1761451610890,4.00562092,193.27,193.15,2.71]
[1761451611091,4.00562092,193.26,193.17,2.71]
[1761451611390,4.00562092,193.25,193.17,2.71]
[1761451611592,4.00562092,193.24,193.17,2.71]
[1761451611890,4.00562092,193.28,193.17,2.71]
[1761451612092,4.00562092,193.27,193.17,2.71]
[1761451612280,4.00562092,193.26,193.17,2.71]
[1761451612481,4.00562092,193.25,193.17,2.71]
[1761451612686,4.84657789,193.29,193.17,2.71]
[1761451612881,4.00363836,193.28,193.17,2.71]
[1761451613088,4.00363836,193.27,193.17,2.71]
[1761451613291,4.00363836,193.26,193.17,2.71]
[1761451613489,4.00363836,193.25,193.17,2.71]
[1761451613689,4.84657789,193.29,193.17,2.71]
[1761451613990,4.00355229,193.28,193.17,2.71]
[1761451614190,4.00355229,193.27,193.17,2.71]
[1761451614392,4.00355229,193.26,193.17,2.71]
[1761451614590,4.00355229,193.25,193.17,2.71]
[1761451614788,4.84657789,193.29,193.17,2.71]
[1761451614987,4.00359251,193.28,193.17,2.71]
[1761451615190,4.00359251,193.27,193.17,2.71]
[1761451615492,4.00359251,193.26,193.17,2.71]
[1761451615691,4.00359251,193.25,193.17,2.71]
[1761451615894,4.84657789,193.29,193.17,2.71]
[1761451616093,4.00378057,193.28,193.17,2.71]
[1761451616283,4.00378057,193.27,193.17,2.71]
[1761451616489,4.00378057,193.26,193.17,2.71]
[1761451616689,4.00378057,193.25,193.17,2.71]
[1761451616889,4.84657789,193.29,193.17,2.71]
[1761451616890,4.00378057,193.24,193.17,2.71]
[1761451617089,4.00378057,193.28,193.17,2.71]
[1761451617289,4.00378057,193.27,193.18,2.71]
[1761451617493,4.00378057,193.26,193.19,2.71]
[1761451617696,4.00378057,193.25,193.19,2.71]
[1761451617892,4.84657789,193.29,193.19,2.71]
[1761451618195,4.0045656,193.28,193.19,2.71]
[1761451618396,4.0045656,193.27,193.19,2.71]
[1761451618593,4.0045656,193.26,193.19,2.71]
[1761451618792,4.0045656,193.25,193.19,2.71]
[1761451618992,4.84657789,193.29,193.19,2.71]
[1761451619189,4.00510884,193.28,193.19,2.71]
[1761451619389,4.00510884,193.27,193.19,2.71]
[1761451619591,4.00510884,193.26,193.19,2.71]
[1761451619792,4.00510884,193.25,193.19,2.71]
[1761451619994,4.84657789,193.29,193.19,2.71]
[1761451620197,4.00583956,193.28,193.19,2.71]
[1761451620398,4.00583956,193.27,193.19,2.71]
[1761451620597,4.00583956,193.26,193.19,2.71]
[1761451620895,4.00583956,193.25,193.19,2.71]
[1761451621096,4.00583956,193.24,193.19,2.71]
[1761451621288,4.84657789,193.29,193.19,2.71]
[1761451621488,4.00804402,193.28,193.19,2.71]
[1761451621688,4.00804402,193.27,193.19,2.71]
[1761451621888,4.00804402,193.26,193.19,2.71]
[1761451622089,4.00804402,193.25,193.19,2.71]
[1761451622289,4.00804402,193.24,193.19,2.71]
[1761451622489,4.84657789,193.28,193.19,2.71]
[1761451622699,4.00920752,193.27,193.19,2.71]
[1761451622900,4.00920752,193.26,193.19,2.71]
[1761451623100,4.00920752,193.25,193.19,2.71]
[1761451623296,4.00920752,193.24,193.19,2.71]
[1761451623595,4.84657789,193.28,193.19,2.71]
[1761451623899,4.01065752,193.27,193.19,2.71]
[1761451624096,4.01065752,193.26,193.19,2.71]
[1761451624401,4.01065752,193.25,193.19,2.71]
[1761451624599,4.01065752,193.24,193.19,2.71]
[1761451624803,4.84657789,193.3,193.19,2.71]
[1761451625104,4.01122272,193.29,193.19,2.71]
[1761451625304,4.01122272,193.28,193.19,2.71]
[1761451625602,4.01122272,193.27,193.19,2.71]
[1761451625802,4.01122272,193.26,193.19,2.71]
[1761451626000,4.84657789,193.3,193.21,2.86]
[1761451626202,4.01040759,193.29,193.22,2.86]
[1761451626403,4.01040759,193.28,193.22,2.86]
[1761451626604,4.01040759,193.27,193.23,2.86]
[1761451626800,4.01040759,193.26,193.23,2.86]
[1761451627001,4.84657789,193.31,193.23,2.86]
[1761451627209,4.00973731,193.3,193.23,62.3]
[1761451627403,4.00973731,193.29,193.24,2.86]
[1761451627597,4.00973731,193.28,193.24,2.86]
[1761451627800,4.84657789,193.33,193.24,2.86]
[1761451628001,4.00876205,193.32,193.24,2.86]
[1761451628201,4.00876205,193.31,193.24,2.86]
[1761451628406,4.00876205,193.3,193.24,2.86]
[1761451628606,4.00876205,193.29,193.24,2.86]
[1761451628907,4.00876205,193.28,193.24,2.86]
[1761451629111,3.99890124,193.27,193.24,2.86]
[1761451629404,4.40707403,193.32,193.24,2.86]
[1761451629709,3.99827474,193.31,193.24,2.86]
[1761451629907,3.99827474,193.3,193.24,2.86]
[1761451630110,3.99827474,193.29,193.24,2.86]
[1761451630411,3.99827474,193.28,193.24,2.86]
[1761451630708,3.99827474,193.27,193.24,2.86]
[1761451630908,4.84657789,193.32,193.24,2.86]
[1761451631110,3.99792184,193.31,193.24,2.86]
[1761451631310,3.99792184,193.3,193.24,2.86]
[1761451631501,3.99792184,193.29,193.24,2.86]
[1761451631703,3.99792184,193.28,193.24,2.86]
[1761451631899,3.99792184,193.27,193.24,2.86]
[1761451632101,4.42493255,193.32,193.24,2.86]
[1761451632310,3.99760195,193.31,193.24,2.86]
[1761451632513,3.99760195,193.3,193.24,2.86]
[1761451632712,3.99760195,193.29,193.24,2.86]
[1761451632912,3.99760195,193.28,193.24,2.86]
[1761451633108,3.99760195,193.27,193.24,2.86]
[1761451633308,4.42457006,193.32,193.24,2.86]
[1761451633512,3.99708367,193.31,193.24,2.86]
[1761451633710,3.99708367,193.3,193.24,2.86]
[1761451633909,3.99708367,193.29,193.24,2.86]
[1761451634111,3.99708367,193.28,193.24,2.86]
[1761451634310,4.42457006,193.32,193.24,2.86]
[1761451634505,3.99692013,193.31,193.24,2.86]
[1761451634810,3.99692013,193.3,193.24,2.86]
[1761451635111,3.99692013,193.29,193.24,2.86]
[1761451635311,3.99692013,193.28,193.24,2.86]
[1761451635608,3.99695726,193.27,193.24,2.86]
[1761451635810,4.42457006,193.32,193.24,2.86]
[1761451636011,3.99690272,193.31,193.24,2.86]
[1761451636209,3.99690272,193.3,193.24,2.86]
[1761451636409,3.99690272,193.29,193.24,2.86]
[1761451636610,3.99690272,193.28,193.24,2.86]
[1761451636809,4.42457006,193.32,193.24,2.86]
[1761451637003,3.99688025,193.31,193.24,2.86]
[1761451637204,3.99688025,193.3,193.24,2.86]
[1761451637504,3.99688025,193.29,193.24,2.86]
[1761451637706,3.99688025,193.28,193.24,2.86]
[1761451637906,4.84657789,193.32,193.24,2.86]
[1761451638205,3.99694169,193.31,193.24,2.86]
[1761451638403,4.84657789,193.32,193.24,2.86]
[1761451638404,3.99694169,193.3,193.24,2.86]
[1761451638602,3.99694169,193.29,193.24,2.86]
[1761451638804,3.99694169,193.28,193.24,2.86]
[1761451639005,3.99694169,193.27,193.24,2.86]
[1761451639208,4.84657789,193.32,193.24,2.86]
[1761451639408,3.99734142,193.31,193.24,2.86]
[1761451639614,3.99734142,193.3,193.24,2.86]
[1761451639913,3.99734142,193.29,193.24,2.86]
[1761451640103,3.99734142,193.28,193.24,2.86]
[1761451640302,3.99734142,193.27,193.24,2.86]
[1761451640507,4.84657789,193.31,193.24,2.86]
[1761451640715,3.99758135,193.3,193.24,2.86]
[1761451640907,3.99758135,193.29,193.2,2.82]
[1761451641103,3.99758135,193.28,193.2,2.82]
[1761451641303,3.99758135,193.27,193.21,2.82]
[1761451641506,4.84657789,193.31,193.21,2.82]
[1761451641714,3.99785635,193.3,193.21,2.82]
[1761451641908,3.99785635,193.29,193.21,2.82]
[1761451642224,3.99785635,193.28,193.21,2.82]
[1761451642405,3.99785635,193.27,193.21,2.82]
[1761451642708,3.99785635,193.26,193.21,2.82]
[1761451642907,4.84657789,193.31,193.21,2.82]
[1761451643110,3.99848647,193.3,193.21,2.82]
[1761451643311,3.99848647,193.29,193.21,2.82]
[1761451643618,3.99848647,193.28,193.21,2.82]
[1761451643918,3.99848647,193.27,193.21,2.82]
[1761451644107,3.99848647,193.26,193.21,2.82]
[1761451644310,4.84657789,193.3,193.21,2.82]
[1761451644510,3.9995109,193.29,193.21,2.82]
[1761451644719,3.9995109,193.28,193.21,2.82]
[1761451644918,3.9995109,193.27,193.21,2.82]
[1761451645119,4.84657789,193.3,193.21,2.82]
[1761451645120,3.9995109,193.26,193.21,2.82]
[1761451645321,4.84657789,193.3,193.21,2.82]
[1761451645522,4.00013125,193.29,193.21,2.82]
[1761451645722,4.00013125,193.28,193.21,2.82]
[1761451646019,4.00013125,193.27,193.21,2.82]
[1761451646221,4.00013125,193.26,193.21,2.82]
[1761451646417,4.84657789,193.3,193.21,2.82]
[1761451646629,4.00083353,193.29,193.21,2.82]
[1761451646919,4.00083353,193.28,193.21,2.82]
[1761451647120,4.00083353,193.27,193.21,2.82]
[1761451647319,4.00083353,193.26,193.21,2.82]
[1761451647521,4.84657789,193.3,193.21,2.82]
[1761451647821,4.00162732,193.29,193.21,2.82]
[1761451648021,4.00162732,193.28,193.21,2.82]
[1761451648217,4.00162732,193.27,193.21,2.82]
[1761451648418,4.00162732,193.26,193.21,2.82]
[1761451648619,4.00162732,193.25,193.21,2.82]
[1761451648821,4.84657789,193.3,193.21,2.82]
[1761451649016,4.00234603,193.29,193.21,2.82]
[1761451649224,4.00234603,193.28,193.21,2.82]
[1761451649522,4.84657789,193.3,193.21,2.82]
[1761451649523,4.00234603,193.27,193.21,2.82]
[1761451649823,4.00234603,193.26,193.21,2.82]
[1761451650015,4.00234603,193.25,193.21,2.82]
[1761451650212,4.00234603,193.24,193.21,2.82]
[1761451650518,4.84657789,193.28,193.21,2.82]
[1761451650715,4.00447829,193.27,193.21,2.82]
[1761451650915,4.00447829,193.26,193.21,2.82]
[1761451651222,4.00447829,193.25,193.21,2.82]
[1761451651520,4.84657789,193.28,193.21,2.82]
[1761451651521,4.00447829,193.24,193.21,2.82]
[1761451651716,4.00447829,193.23,193.21,2.82]
[1761451651921,4.84657789,193.28,193.21,2.82]
[1761451652124,4.00554458,193.27,193.21,2.82]
[1761451652313,4.00554458,193.26,193.21,2.82]
[1761451652518,4.00554458,193.25,193.21,2.82]
[1761451652718,4.00554458,193.24,193.21,2.82]
[1761451652919,4.00554458,193.23,193.21,2.82]
[1761451653119,4.84657789,193.28,193.21,2.82]
[1761451653320,8.85372196,193.27,193.21,2.82]
[1761451653521,4.00714407,193.26,193.21,2.82]
[1761451653722,4.00714407,193.25,193.21,2.82]
[1761451654031,4.00714407,193.24,193.21,2.82]
[1761451654227,4.00714407,193.23,193.21,2.82]
[1761451654430,4.00714407,193.22,193.21,2.82]
[1761451657929,4.00714407,193.22,193.2,2.82]
[1761451658128,4.00714407,193.21,193.2,2.82]
[1761451659325,4.00714407,193.21,193.19,137.05276085]
[1761451659531,4.00714407,193.2,193.19,113.63276085]
[1761451661732,4.00714407,193.2,193.19,116.33276085]
[1761451662322,4.00714407,193.2,193.19,113.63276085]
[1761451664130,4.00714407,193.2,193.19,116.33276085]
[1761451667731,4.00714407,193.2,193.19,113.63276085]
[1761451668533,4.00714407,193.2,193.19,116.33276085]
[1761451669431,4.00714407,193.2,193.19,113.63276085]
[1761451670437,4.00714407,193.2,193.19,116.33276085]
[1761451678857,4.00714407,193.2,193.17,4.20845588]
[1761451679056,4.00714407,193.19,193.17,66.48845588]
[1761451679247,4.84657789,193.23,193.17,66.48845588]
[1761451679449,4.01592099,193.22,193.17,63.78845588]
[1761451679654,4.01592099,193.21,193.18,2.7]
[1761451679854,4.01592099,193.2,193.18,2.7]
[1761451680055,4.01592099,193.19,193.18,2.7]
[1761451683556,4.01592099,193.19,193.17,63.80845588]
[1761451683763,4.01592099,193.18,193.17,62.3]
[1761451684260,4.01592099,193.18,193.17,64.91]
[1761451686467,4.01592099,193.18,193.17,62.3]
[1761451688170,4.01592099,193.18,193.15,2.61]
[1761451688369,4.01592099,193.17,193.15,2.61]
[1761451688569,4.84657789,193.21,193.15,2.61]
[1761451688865,4.05151846,193.2,193.15,2.61]
[1761451689072,4.05151846,193.19,193.15,2.61]
[1761451689267,4.05151846,193.18,193.15,2.61]
[1761451689570,4.05151846,193.17,193.15,2.61]
[1761451689760,4.05151846,193.16,193.15,2.61]
[1761451696771,4.05151846,193.16,193.14,62.3]
[1761451696976,4.05151846,193.15,193.12,4.20845588]
[1761451697175,4.84657789,193.2,193.12,4.20845588]
[1761451697375,4.05099809,193.19,193.12,4.20845588]
[1761451697676,4.05099809,193.18,193.12,4.20845588]
[1761451697885,4.05099809,193.17,193.12,1.50845588]
[1761451698080,4.05099809,193.16,193.13,2.7]
[1761451698374,4.05099809,193.15,193.13,2.7]
[1761451698569,4.84657789,193.2,193.13,2.7]
[1761451698774,4.05106699,193.19,193.13,2.7]
[1761451699078,4.05106699,193.18,193.13,2.7]
[1761451699378,4.05106699,193.17,193.13,2.7]
[1761451699572,4.05106699,193.16,193.13,2.7]
[1761451699772,4.05106699,193.15,193.13,2.7]
[1761451699974,4.84657789,193.2,193.13,2.7]
[1761451700173,4.05122752,193.19,193.13,2.7]
[1761451700474,4.05122752,193.18,193.13,2.7]
[1761451700676,4.05122752,193.17,193.13,2.7]
[1761451700974,4.05122752,193.16,193.13,2.7]
[1761451701174,4.05122752,193.15,193.13,2.7]
[1761451701374,4.84657789,193.19,193.13,2.7]
[1761451701573,4.05182705,193.18,193.15,1.50845588]
[1761451701784,4.05182705,193.17,193.15,4.20845588]
[1761451701975,4.05182705,193.16,193.15,4.20845588]
[1761451714181,4.05182705,193.16,193.15,1.50845588]
[1761451717984,4.05182705,193.16,193.14,1.50845588]
[1761451718184,4.05182705,193.15,193.14,4.20845588]
[1761451719390,4.05182705,193.15,193.14,1.50845588]
[1761451719884,4.05182705,193.15,193.11,4.21845588]
[1761451720090,4.05182705,193.14,193.12,2.71]
[1761451720285,4.05182705,193.13,193.12,2.71]
[1761451726601,4.05182705,193.13,193.12,4.21845588]
[1761451726898,4.05182705,193.13,193.12,2.71]
[1761451741209,4.84657789,193.18,193.13,2.62]
[1761451741803,4.84657789,193.17,193.13,2.62]
[1761451742002,4.84657789,193.17,193.11,62.3]
[1761451742396,4.84657789,193.17,193.11,2.62]
[1761451742602,4.84657789,193.17,193.11,64.92]
[1761451743906,4.84657789,193.17,193.12,2.62]
[1761451751016,4.84657789,193.17,193.11,62.3]
[1761451751318,4.84657789,193.17,193.11,65.07]
[1761451753119,3.97048077,193.16,193.11,65.07]
[1761451753319,3.97048077,193.15,193.12,2.77]
[1761451753520,3.97048077,193.14,193.12,2.77]
[1761451753708,3.97048077,193.13,193.12,2.77]
[1761451756610,249.44661805,193.19,193.12,2.77]
[1761451756815,4.84745532,193.17,193.12,2.77]
[1761451757015,3.97121064,193.16,193.12,2.77]
[1761451757214,3.97121064,193.15,193.12,2.77]
[1761451757415,3.97121064,193.14,193.12,2.77]
[1761451757727,3.97121064,193.13,193.12,2.77]
[1761451760618,3.97121064,193.13,193.11,2.77]
[1761451760825,3.97121064,193.12,193.11,2.77]
[1761451761125,4.84745532,193.17,193.11,2.77]
[1761451761326,3.97146525,193.16,193.11,2.77]
[1761451761529,3.97146525,193.15,193.11,2.77]
[1761451761824,3.97146525,193.14,193.11,2.77]
[1761451762023,3.97146525,193.13,193.11,2.77]
[1761451762220,4.84745532,193.17,193.11,2.77]
[1761451762413,3.97151813,193.16,193.11,2.77]
[1761451762614,3.97151813,193.15,193.11,2.77]
[1761451762827,3.97151813,193.14,193.11,2.77]
[1761451763022,3.97151813,193.13,193.11,2.77]
[1761451763224,4.84745532,193.17,193.11,2.77]
[1761451763421,3.97156803,193.16,193.11,2.77]
[1761451763617,3.97156803,193.15,193.11,2.77]
[1761451763826,3.97156803,193.14,193.11,2.77]
[1761451764026,3.97156803,193.13,193.11,2.77]
[1761451764227,4.84745532,193.17,193.11,2.77]
[1761451764428,3.97162047,193.16,193.11,2.77]
[1761451764629,3.97162047,193.15,193.11,2.77]
[1761451764826,3.97162047,193.14,193.11,2.77]
[1761451765026,3.97162047,193.13,193.11,2.77]
[1761451765219,4.84745532,193.17,193.11,2.77]
[1761451765418,3.97157171,193.16,193.11,2.77]
[1761451765618,3.97157171,193.15,193.11,2.77]
[1761451765818,3.97157171,193.14,193.11,2.77]
[1761451766033,3.97157171,193.13,193.11,2.77]
[1761451766226,4.84745532,193.17,193.11,2.77]
[1761451766428,3.97149708,193.16,193.11,2.77]
[1761451766625,3.97149708,193.15,193.11,2.77]
[1761451766820,3.97149708,193.14,193.11,2.77]
[1761451767031,3.97149708,193.13,193.11,2.77]
[1761451767231,4.84745532,193.17,193.11,2.77]
[1761451767429,3.97155828,193.16,193.11,2.77]
[1761451767628,3.97155828,193.15,193.11,2.77]
[1761451767831,3.97155828,193.14,193.11,2.77]
[1761451768028,3.97155828,193.13,193.11,2.77]
[1761451768231,4.84745532,193.17,193.11,2.77]
[1761451768527,3.97170568,193.16,193.11,2.77]
[1761451768730,3.97170568,193.15,193.11,2.77]
[1761451768929,3.97170568,193.14,193.11,2.77]
[1761451769128,3.97170568,193.13,193.11,2.77]
[1761451769320,4.84745532,193.17,193.11,2.77]
[1761451769626,3.97188217,193.16,193.11,2.77]
[1761451769924,3.97188217,193.15,193.11,2.77]
[1761451770226,3.97188217,193.14,193.11,2.77]
[1761451770431,3.97188217,193.13,193.11,2.77]
[1761451770729,4.84745532,193.17,193.11,2.77]
[1761451770931,3.97209206,193.16,193.11,2.77]
[1761451771132,3.97209206,193.15,193.11,2.77]
[1761451771333,3.97209206,193.14,193.11,2.77]
[1761451771535,3.97209206,193.13,193.11,2.77]
[1761451771729,4.84745532,193.17,193.11,2.77]
[1761451771928,3.97234173,193.16,193.11,2.77]
[1761451772128,3.97234173,193.15,193.11,2.77]
[1761451772323,3.97234173,193.14,193.11,2.77]